Workbook

Sheet Бланки ГПП
A1: Почасовые контрольные замеры эл.эн.( активной )19.06.2013г.
A3: Время | B3: Ф-10-915 | D3: Ф-10-951 | F3: Ф-10-924 | H3: Ф-10-933
A4: местное | B4: активная | C4: реактивная | D4: активная | E4: реактивная | F4: активная | G4: реактивная | H4: активная | I4: реактивная | J4: реактивная
A5: 00:00:00
A6: 01:00:00
A7: 02:00:00
A8: 03:00:00
A9: 04:00:00
A10: 05:00:00
A11: 06:00:00
A12: 07:00:00
A13: 08:00:00
A14: 09:00:00
A15: 10:00:00
A16: 11:00:00
A17: 12:00:00
A18: 13:00:00
A19: 14:00:00
A20: 15:00:00
A21: 16:00:00
A22: 17:00:00
A23: 18:00:00
A24: 19:00:00
A25: 20:00:00
A26: 21:00:00
A27: 22:00:00
A28: 23:00:00
A29: 1
A30: 1.166666667
A31: Исполнители :

Sheet мощностьРП7
B1: Архив средней мощности по каналам учета по РП- 7 на 19.06.2013г.
A2: Время | B2: ф.10-709 (ТП 55,56,57) | C2: ф.10-714 (ТП 55,56,57) | D2: ф.10-713 (ТП47) | E2: ф.10-715 (ТП 51,52,53) | F2: ф.10-718 (ТП 51,52,53) | G2: ф.10-711 (ТП58) | H2: ф.10-712 (ТП58) | I2: ф.10-703 (ТП54) | J2: ф.10-706(ТП54) | K2: Итого расход по всем фидерам РП7
A4: 00:00:00 | B4: 0 | C4: 0 | D4: 0 | E4: 0 | F4: 0 | G4: 0 | H4: 0 | I4: 0 | J4: 0 | K4: =SUM(B4:J4) -> 0
A5: 01:00:00 | B5: 406.4 | C5: 140.8 | D5: 196.8 | E5: 140.8 | F5: 305.6 | G5: 182.4 | H5: 0 | I5: 57.6 | J5: 108.6 | K5: =SUM(B5:J5) -> 1539
A6: 02:00:00 | B6: 310.4 | C6: 112 | D6: 186.4 | E6: 112 | F6: 252.8 | G6: 164 | H6: 0 | I6: 43.2 | J6: 93.6 | K6: 1274.4
A7: 03:00:00 | B7: 281.6 | C7: 107.2 | D7: 187.2 | E7: 107.2 | F7: 217.6 | G7: 152 | H7: 0 | I7: 40.8 | J7: 94.8 | K7: 1188.4
A8: 04:00:00 | B8: 278.4 | C8: 105.6 | D8: 182.4 | E8: 105.6 | F8: 209.6 | G8: 153.6 | H8: 0 | I8: 41.4 | J8: 90.6 | K8: 1167.2
A9: 05:00:00 | B9: 302.4 | C9: 91.2 | D9: 166.4 | E9: 91.2 | F9: 195.2 | G9: 144 | H9: 0 | I9: 39.6 | J9: 90.6 | K9: 1120.6
A10: 06:00:00 | B10: 321.6 | C10: 97.6 | D10: 148.8 | E10: 97.6 | F10: 220.8 | G10: 152 | H10: 0 | I10: 22.2 | J10: 97.2 | K10: 1157.8
A11: 07:00:00 | B11: 452.8 | C11: 201.6 | D11: 154.4 | E11: 201.6 | F11: 366.4 | G11: 180.8 | H11: 0 | I11: 31.2 | J11: 102 | K11: 1690.8
A12: 08:00:00 | B12: 542.4 | C12: 206.4 | D12: 166.4 | E12: 206.4 | F12: 393.6 | G12: 220.8 | H12: 0 | I12: 61.2 | J12: 129.6 | K12: 1926.8
A13: 09:00:00 | B13: 486.4 | C13: 211.2 | D13: 170.4 | E13: 211.2 | F13: 379.2 | G13: 247.2 | H13: 0 | I13: 84.6 | J13: 173.4 | K13: 1963.6
A14: 10:00:00 | B14: 518.4 | C14: 222.4 | D14: 165.6 | E14: 222.4 | F14: 384 | G14: 256.8 | H14: 0 | I14: 78 | J14: 186.6 | K14: 2034.2
A15: 11:00:00 | B15: 488 | C15: 185.6 | D15: 148 | E15: 185.6 | F15: 366.4 | G15: 298.4 | H15: 0 | I15: 87 | J15: 216 | K15: 1975
A16: 12:00:00 | B16: 521.6 | C16: 182.4 | D16: 155.2 | E16: 182.4 | F16: 379.2 | G16: 292 | H16: 0 | I16: 83.4 | J16: 228 | K16: 2024.2
A17: 13:00:00 | B17: 465.6 | C17: 185.6 | D17: 159.2 | E17: 185.6 | F17: 392 | G17: 288 | H17: 0 | I17: 97.8 | J17: 218.4 | K17: 1992.2
A18: 14:00:00 | B18: 456 | C18: 169.6 | D18: 165.6 | E18: 169.6 | F18: 356.8 | G18: 291.2 | H18: 0 | I18: 76.8 | J18: 204 | K18: 1889.6
A19: 15:00:00 | B19: 449.6 | C19: 171.2 | D19: 170.4 | E19: 171.2 | F19: 363.2 | G19: 279.2 | H19: 0 | I19: 81 | J19: 202.8 | K19: 1888.6
A20: 16:00:00 | B20: 486.4 | C20: 168 | D20: 145.6 | E20: 168 | F20: 372.8 | G20: 288 | H20: 0 | I20: 76.2 | J20: 192.6 | K20: 1897.6
A21: 17:00:00 | B21: 499.2 | C21: 158.4 | D21: 158.4 | E21: 158.4 | F21: 376 | G21: 292 | H21: 0 | I21: 69.6 | J21: 193.2 | K21: 1905.2
A22: 18:00:00 | B22: 531.2 | C22: 166.4 | D22: 167.2 | E22: 166.4 | F22: 411.2 | G22: 303.2 | H22: 0 | I22: 72.6 | J22: 192 | K22: 2010.2
A23: 19:00:00 | B23: 542.4 | C23: 187.2 | D23: 187.2 | E23: 187.2 | F23: 443.2 | G23: 306.4 | H23: 0 | I23: 84.6 | J23: 180 | K23: 2118.2
A24: 20:00:00 | B24: 604.8 | C24: 195.2 | D24: 208 | E24: 195.2 | F24: 486.4 | G24: 312.8 | H24: 0 | I24: 81.6 | J24: 165 | K24: 2249
A25: 21:00:00 | B25: 665.6 | C25: 209.6 | D25: 204 | E25: 209.6 | F25: 520 | G25: 322.4 | H25: 0 | I25: 60 | J25: 141 | K25: 2332.2
A26: 22:00:00 | B26: 699.2 | C26: 241.6 | D26: 216 | E26: 241.6 | F26: 539.2 | G26: 312 | H26: 0 | I26: 78.6 | J26: 132 | K26: 2460.2
A27: 23:00:00 | B27: 649.6 | C27: 222.4 | D27: 205.6 | E27: 222.4 | F27: 494.4 | G27: 290.4 | H27: 0 | I27: 77.4 | J27: 127.2 | K27: 2289.4
A28: 1 | B28: 555.2 | C28: 185.6 | D28: 174.4 | E28: 185.6 | F28: 385.6 | G28: 244 | H28: 0 | I28: 66.6 | J28: 110.4 | K28: 1907.4
A29: Итого | B29: =SUM(B4:B28) -> 11515.2 | C29: 4124.8 | D29: 4189.6 | E29: 4124.8 | F29: 8811.2 | G29: 5973.6 | H29: 0 | I29: 1593 | J29: 3669.6 | K29: 44001.8
A30: Средняя мощность | B30: =ROUND(B29/24,3) -> 479.8 | C30: =ROUND(C29/24,3) -> 171.867 | D30: 174.567 | E30: 171.867 | F30: 367.133 | G30: 248.9 | H30: 0 | I30: 66.375 | J30: 152.9 | K30: 1833.409
B32: Архив средней мощности по каналам учета по РП- 7 на 18.12.2013г.
A33: Время | B33: ф.10-709 (ТП 55,56,57) | C33: ф.10-714 (ТП 55,56,57) | D33: ф.10-713 (ТП47) | E33: ф.10-715 (ТП 51,52,53) | F33: ф.10-718 (ТП 51,52,53) | G33: ф.10-711 (ТП58) | H33: ф.10-712 (ТП58) | I33: ф.10-703 (ТП54) | J33: ф.10-706(ТП54) | K33: Итого расход по всем фидерам РП7
A35: 00:00:00 | K35: =SUM(B35:J35) -> 0
A36: 01:00:00 | B36: 403.2 | C36: 136 | D36: 167.2 | E36: 419.2 | F36: 80 | G36: 154.4 | H36: 0 | I36: 42 | J36: 109.8 | K36: =SUM(B36:J36) -> 1511.8
A37: 02:00:00 | B37: 324.8 | C37: 118.4 | D37: 171.2 | E37: 347.2 | F37: 64 | G37: 139.2 | H37: 0 | I37: 35.4 | J37: 98.4 | K37: 1298.6
A38: 03:00:00 | B38: 294.4 | C38: 112 | D38: 172 | E38: 324.8 | F38: 57.6 | G38: 139.2 | H38: 0 | I38: 34.2 | J38: 94.8 | K38: 1229
A39: 04:00:00 | B39: 284.8 | C39: 110.4 | D39: 170.4 | E39: 318.4 | F39: 54.4 | G39: 133.6 | H39: 0 | I39: 34.8 | J39: 93 | K39: 1199.8
A40: 05:00:00 | B40: 297.6 | C40: 110.4 | D40: 170.4 | E40: 331.2 | F40: 54.4 | G40: 130.4 | H40: 0 | I40: 33.6 | J40: 97.8 | K40: 1225.8
A41: 06:00:00 | B41: 332.8 | C41: 171.2 | D41: 170.4 | E41: 403.2 | F41: 62.4 | G41: 143.2 | H41: 0 | I41: 33.6 | J41: 102.6 | K41: 1419.4
A42: 07:00:00 | B42: 473.6 | C42: 211.2 | D42: 168.8 | E42: 521.6 | F42: 121.6 | G42: 156 | H42: 0 | I42: 40.8 | J42: 104.4 | K42: 1798
A43: 08:00:00 | B43: 600 | C43: 272 | D43: 175.2 | E43: 680 | F43: 131.2 | G43: 213.6 | H43: 0 | I43: 64.2 | J43: 132 | K43: 2268.2
A44: 09:00:00 | B44: 620.8 | C44: 262.4 | D44: 200.8 | E44: 643.2 | F44: 110.4 | G44: 246.4 | H44: 0 | I44: 85.2 | J44: 186 | K44: 2355.2
A45: 10:00:00 | B45: 649.6 | C45: 276.8 | D45: 203.2 | E45: 665.6 | F45: 108.8 | G45: 271.2 | H45: 0 | I45: 48 | J45: 202.2 | K45: 2425.4
A46: 11:00:00 | B46: 641.6 | C46: 272 | D46: 193.6 | E46: 646.4 | F46: 115.2 | G46: 293.6 | H46: 0 | I46: 56.4 | J46: 241.2 | K46: 2460
A47: 12:00:00 | B47: 595.2 | C47: 220.83 | D47: 200 | E47: 636.8 | F47: 102.4 | G47: 302.4 | H47: 0 | I47: 61.2 | J47: 249.6 | K47: 2368.43
A48: 13:00:00 | B48: 552 | C48: 224 | D48: 188.8 | E48: 632 | F48: 108.8 | G48: 302.4 | H48: 0 | I48: 76.2 | J48: 242.4 | K48: 2326.6
A49: 14:00:00 | B49: 580.8 | C49: 219.2 | D49: 204.8 | E49: 611.2 | F49: 97.6 | G49: 288.8 | H49: 0 | I49: 63.6 | J49: 216.6 | K49: 2282.6
A50: 15:00:00 | B50: 558.4 | C50: 180.8 | D50: 206.4 | E50: 608 | F50: 96 | G50: 304 | H50: 0 | I50: 67.2 | J50: 213.6 | K50: 2234.4
A51: 16:00:00 | B51: 566.4 | C51: 195.2 | D51: 221.6 | E51: 643.2 | F51: 108.8 | G51: 308 | H51: 0 | I51: 65.4 | J51: 211.8 | K51: 2320.4
A52: 17:00:00 | B52: 632 | C52: 230.4 | D52: 211.2 | E52: 768 | F52: 137.6 | G52: 305.6 | H52: 0 | I52: 70.8 | J52: 217.2 | K52: 2572.8
A53: 18:00:00 | B53: 731.2 | C53: 262.4 | D53: 181.6 | E53: 984 | F53: 166.4 | G53: 340.8 | H53: 0 | I53: 73.8 | J53: 220.8 | K53: =SUM(B53:J53) -> 2961
A54: 19:00:00 | B54: 830.4 | C54: 275.2 | D54: 175.2 | E54: 1016 | F54: 174.4 | G54: 339.2 | H54: 0 | I54: 79.8 | J54: 205.8 | K54: 3096
A55: 20:00:00 | B55: 854.4 | C55: 270.4 | D55: 160.8 | E55: 998.4 | F55: 184 | G55: 350.4 | H55: 0 | I55: 81.6 | J55: 183 | K55: 3083
A56: 21:00:00 | B56: 864 | C56: 280 | D56: 153.6 | E56: 993.6 | F56: 177.6 | G56: 330.4 | H56: 0 | I56: 59.4 | J56: 150.6 | K56: 3009.2
A57: 22:00:00 | B57: 793.6 | C57: 267.2 | D57: 137.6 | E57: 888 | F57: 160 | G57: 286.4 | H57: 0 | I57: 63.6 | J57: 138 | K57: 2734.4
A58: 23:00:00 | B58: 664 | C58: 216 | D58: 130.4 | E58: 704 | F58: 132.8 | G58: 251.2 | H58: 0 | I58: 53.4 | J58: 130.2 | K58: 2282
A59: 1 | B59: 491.2 | C59: 179.2 | D59: 126.4 | E59: 537.6 | F59: 99.2 | G59: 216 | H59: 0 | I59: 48 | J59: 111.6 | K59: 1809.2
A60: Итого | B60: =SUM(B35:B59) -> 13636.8 | C60: 5073.63 | D60: 4261.6 | E60: 15321.6 | F60: 2705.6 | G60: 5946.4 | H60: 0 | I60: 1372.2 | J60: 3953.4 | K60: 52271.23
A61: Средняя мощность | B61: =ROUND(B60/24,3) -> 568.2 | C61: 211.401 | D61: 177.567 | E61: 638.4 | F61: 112.733 | G61: 247.767 | H61: 0 | I61: 57.175 | J61: 164.725 | K61: 2177.968

Sheet мощность РП8
B1: Архив средней мощности по каналам учета РП - 8 на 19.12.2013г.
A2: Время | B2: ф.10-807(ТП 81) | C2: ф.10-814(ТП 83) | D2: ф.10-811 (стой.мех. СФ Проспект)) | E2: ф.10-819 (стой.мех. СФ Проспект)) | F2: ф.10-820 (стой.мех. СФ Проспект)) | G2: ф.10-815 Вектор-Фарм | H2: ф.10-822 Вектор-Фарм | I2: ф.10-817 Вектор-Фарм | J2: ф.10-824 Вектор-Фарм | K2: Итого расход по всем фидерам РП8
A4: 00:00:00 | K4: =SUM(B4:J4) -> 0
A5: 01:00:00 | B5: 596 | C5: 0 | D5: 340.8 | E5: 27 | F5: 132 | G5: 0 | H5: 4.8 | I5: 4 | J5: 43.2 | K5: 1147.8
A6: 02:00:00 | B6: 495 | C6: 0 | D6: 344 | E6: 21 | F6: 132.25 | G6: 0 | H6: 4.8 | I6: 4 | J6: 41.6 | K6: 1042.65
A7: 03:00:00 | B7: 442 | C7: 0 | D7: 344 | E7: 20 | F7: 132 | G7: 0 | H7: 4 | I7: 4.8 | J7: 41.6 | K7: 988.4
A8: 04:00:00 | B8: 434 | C8: 0 | D8: 345.6 | E8: 17 | F8: 131.75 | G8: 0 | H8: 4.8 | I8: 4 | J8: 42.4 | K8: 979.55
A9: 05:00:00 | B9: 430 | C9: 0 | D9: 344 | E9: 20 | F9: 131.75 | G9: 0 | H9: 4 | I9: 4 | J9: 40.8 | K9: 974.55
A10: 06:00:00 | B10: 446 | C10: 0 | D10: 344 | E10: 20.5 | F10: 131.5 | G10: 0 | H10: 4.8 | I10: 4 | J10: 42.4 | K10: 993.2
A11: 07:00:00 | B11: 570 | C11: 0 | D11: 345.6 | E11: 27 | F11: 133 | G11: 0 | H11: 4.8 | I11: 4 | J11: 42.4 | K11: 1126.8
A12: 08:00:00 | B12: 782 | C12: 0 | D12: 380.8 | E12: 45.5 | F12: 134.5 | G12: 0 | H12: 4 | I12: 4.8 | J12: 45.6 | K12: 1397.2
A13: 09:00:00 | B13: 761 | C13: 0 | D13: 408 | E13: 40 | F13: 151.25 | G13: 0 | H13: 15.2 | I13: 19.2 | J13: 68.8 | K13: 1463.45
A14: 10:00:00 | B14: 725 | C14: 0 | D14: 420.8 | E14: 39 | F14: 113.25 | G14: 0 | H14: 4.8 | I14: 16.8 | J14: 57.6 | K14: 1377.25
A15: 11:00:00 | B15: 868 | C15: 0 | D15: 440 | E15: 35.5 | F15: 86 | G15: 0 | H15: 4 | I15: 16 | J15: 56 | K15: 1505.5
A16: 12:00:00 | B16: 837 | C16: 0 | D16: 372.8 | E16: 34.5 | F16: 106.25 | G16: 0 | H16: 48 | I16: 16.8 | J16: 72.8 | K16: 1488.15
A17: 13:00:00 | B17: 830 | C17: 0 | D17: 310.4 | E17: 34 | F17: 100 | G17: 0 | H17: 77.6 | I17: 16.8 | J17: 80.8 | K17: 1449.6
A18: 14:00:00 | B18: 800 | C18: 0 | D18: 340.8 | E18: 33 | F18: 106.75 | G18: 0 | H18: 168 | I18: 25.6 | J18: 69.6 | K18: 1543.75
A19: 15:00:00 | B19: 755 | C19: 0 | D19: 368 | E19: 30.5 | F19: 107 | G19: 0 | H19: 4.8 | I19: 4 | J19: 51.2 | K19: 1320.5
A20: 16:00:00 | B20: 801 | C20: 0 | D20: 345.6 | E20: 31.5 | F20: 106.75 | G20: 0 | H20: 6.4 | I20: 6.4 | J20: 60 | K20: 1357.65
A21: 17:00:00 | B21: 851 | C21: 0 | D21: 331.2 | E21: 35.5 | F21: 107 | G21: 0 | H21: 4.8 | I21: 4.8 | J21: 48 | K21: 1382.3
A22: 18:00:00 | B22: 1000 | C22: 0 | D22: 368 | E22: 48.5 | F22: 118.5 | G22: 0 | H22: 4.8 | I22: 4.8 | J22: 46.4 | K22: 1591
A23: 19:00:00 | B23: 1096 | C23: 0 | D23: 395.2 | E23: 52 | F23: 113.25 | G23: 0 | H23: 4 | I23: 5.6 | J23: 44 | K23: 1710.05
A24: 20:00:00 | B24: 1170 | C24: 0 | D24: 384 | E24: 53.5 | F24: 94.5 | G24: 0 | H24: 4.8 | I24: 4 | J24: 44.8 | K24: 1755.6
A25: 21:00:00 | B25: 1190 | C25: 0 | D25: 347.2 | E25: 62.5 | F25: 127 | G25: 0 | H25: 4.8 | I25: 4.8 | J25: 49.6 | K25: 1785.9
A26: 22:00:00 | B26: 1143 | C26: 0 | D26: 340.8 | E26: 62 | F26: 110.75 | G26: 0 | H26: 4.8 | I26: 4.8 | J26: 49.6 | K26: 1715.75
A27: 23:00:00 | B27: 991 | C27: 0 | D27: 321.6 | E27: 51.5 | F27: 108 | G27: 0 | H27: 4.8 | I27: 4.8 | J27: 48.8 | K27: 1530.5
A28: 1 | B28: 780 | C28: 0 | D28: 323.2 | E28: 38.5 | F28: 108.75 | G28: 0 | H28: 4.8 | I28: 4 | J28: 47.2 | K28: 1306.45
A29: Итого | B29: =SUM(B4:B28) -> 18793 | C29: 0 | D29: 8606.4 | E29: =SUM(E4:E28) -> 880 | F29: =SUM(F4:F28) -> 2823.75 | G29: 0 | H29: 402.4 | I29: 192.8 | J29: =SUM(J4:J28) -> 1235.2 | K29: 32933.55 | L29: =K29+мощностьРП7!K60 -> 85204.78
A30: Средняя мощность | B30: =ROUND(B29/24,3) -> 783.042 | C30: 0 | D30: 358.6 | E30: =ROUND(E29/24,3) -> 36.667 | F30: =ROUND(F29/24,3) -> 117.656 | G30: =ROUND(G29/24,3) -> 0 | H30: 16.767 | I30: 8.033 | J30: 51.467 | K30: 1372.232 | L30: =K30+мощностьРП7!K61 -> 3550.2
A32: Итого средняя мощность по РП7 и РП8 в зимний период | K32: =мощностьРП7!K61+'мощность РП8'!K30 -> 3550.2 | L32: =L29/24 -> 3550.199167
B34: Архив средней мощности по каналам учета РП - 8 на 19.06.2013г.
A35: Время | B35: ф.10-807(ТП 81) | C35: ф.10-814(ТП 83) | D35: ф.10-811 (стой.мех. СФ Проспект)) | E35: ф.10-815 Вектор-Фарм | F35: ф.10-822 Вектор-Фарм | G35: ф.10-817 Вектор-Фарм | H35: ф.10-824 Вектор-Фарм | I35: ф.10-819 ТП 88 | J35: Итого расход по всем фидерам РП8
A37: 00:00:00 | B37: 0 | D37: 0 | E37: 0 | F37: 0 | G37: 0 | H37: 0 | I37: 0 | J37: =SUM(B37:I37) -> 0
A38: 01:00:00 | B38: 590 | D38: 68.8 | E38: 0 | F38: 0.8 | G38: 75.2 | H38: 55.2 | I38: 74 | J38: 864
A39: 02:00:00 | B39: 429 | D39: 70.4 | E39: 0 | F39: 0.8 | G39: 73.6 | H39: 52.8 | I39: 51 | J39: 677.6
A40: 03:00:00 | B40: 367 | D40: 70.4 | E40: 0 | F40: 0.8 | G40: 72.8 | H40: 53.6 | I40: 34 | J40: 598.6
A41: 04:00:00 | B41: 349 | D41: 69.6 | E41: 0 | F41: 1.6 | G41: 72.8 | H41: 52 | I41: 25 | J41: 570
A42: 05:00:00 | B42: 326 | D42: 67.2 | E42: 0 | F42: 0.8 | G42: 72 | H42: 48.8 | I42: 22 | J42: 536.8
A43: 06:00:00 | B43: 324 | D43: 63.6 | E43: 0 | F43: 0.8 | G43: 71.2 | H43: 44 | I43: 25 | J43: 528.6
A44: 07:00:00 | B44: 481 | D44: 62 | E44: 0 | F44: 0.8 | G44: 69.6 | H44: 44 | I44: 36 | J44: 693.4
A45: 08:00:00 | B45: 664 | D45: 91.6 | E45: 0 | F45: 0.8 | G45: 70.4 | H45: 44.8 | I45: 64 | J45: 935.6
A46: 09:00:00 | B46: 659 | D46: 127.6 | E46: 0 | F46: 0 | G46: 71.2 | H46: 84.8 | I46: 57 | J46: 999.6
A47: 10:00:00 | B47: 686 | D47: 123.6 | E47: 0 | F47: 0.8 | G47: 72 | H47: 82.4 | I47: 66 | J47: 1030.8
A48: 11:00:00 | B48: 704 | D48: 112.8 | E48: 0 | F48: 18.4 | G48: 85.6 | H48: 72.8 | I48: 59 | J48: 1052.6
A49: 12:00:00 | B49: 704 | D49: 118.8 | E49: 0 | F49: 20.8 | G49: 86.4 | H49: 72 | I49: 78 | J49: 1080
A50: 13:00:00 | B50: 671 | D50: 64.4 | E50: 0 | F50: 0.8 | G50: 69.6 | H50: 57.6 | I50: 73 | J50: 936.4
A51: 14:00:00 | B51: 645 | D51: 97.6 | E51: 0 | F51: 0 | G51: 83.2 | H51: 76.8 | I51: 64 | J51: 966.6
A52: 15:00:00 | B52: 618 | D52: 100 | E52: 0 | F52: 0.8 | G52: 55.2 | H52: 63.2 | I52: 56 | J52: 893.2
A53: 16:00:00 | B53: 611 | D53: 94 | E53: 0 | F53: 0 | G53: 16.8 | H53: 52 | I53: 52 | J53: 825.8
A54: 17:00:00 | B54: 630 | D54: 74.4 | E54: 0 | F54: 0.8 | G54: 4 | H54: 25.6 | I54: 52 | J54: 786.8
A55: 18:00:00 | B55: 676 | D55: 75.6 | E55: 0 | F55: 0 | G55: 4 | H55: 18.4 | I55: 66 | J55: 840
A56: 19:00:00 | B56: 711 | D56: 69.2 | E56: 0 | F56: 0.8 | G56: 3.2 | H56: 20 | I56: 48 | J56: 852.2
A57: 20:00:00 | B57: 834 | D57: 70 | E57: 0 | F57: 0.8 | G57: 3.2 | H57: 36.8 | I57: 65 | J57: 1009.8
A58: 21:00:00 | B58: 874 | D58: 73.6 | E58: 0 | F58: 0.8 | G58: 3.2 | H58: 32 | I58: 64 | J58: 1047.6
A59: 22:00:00 | B59: 993 | D59: 71.2 | E59: 0 | F59: 0.8 | G59: 3.2 | H59: 25.6 | I59: 85 | J59: 1178.8
A60: 23:00:00 | B60: 958 | D60: 63.6 | E60: 0 | F60: 0.8 | G60: 4.8 | H60: 27.2 | I60: 90 | J60: 1144.4
A61: 1 | B61: 774 | D61: 69.6 | E61: 0 | F61: 0.8 | G61: 4.8 | H61: 28 | I61: 72 | J61: 949.2
A62: Итого | B62: =SUM(B37:B61) -> 15278 | C62: 0 | D62: 1969.6 | E62: 0 | F62: 54.4 | G62: 1148 | H62: 1170.4 | I62: 1378 | J62: =SUM(B62:H62) -> 19620.4
A63: Средняя мощность | B63: =ROUND(B62/24,3) -> 636.583 | C63: 0 | D63: 82.067 | E63: 0 | F63: 2.267 | G63: 47.833 | H63: 48.767 | J63: =SUM(B63:H63) -> 817.517

Sheet расчет 2013
A1: Расчет расхода активной электроэнергии на 18.12.2013
A2: Время | B2: Расход (Кольцово) | C2: Расход (Кольцово) | D2: Сумма всех фидеров | E2: Общая нагрузка по всем фидерам
A3: местное | B3: Сумма фидеров 924+ф.933 (РП-7) | C3: Сумма фидеров 915 и 951 (РП-8) | D3: расход за сутки | E3: расход лимитируемый ( А )
A4: 00:00:00 | B4: ='зима 2013'!J5+'зима 2013'!M5 -> 0 | C4: ='зима 2013'!D5+'зима 2013'!G5 -> 0 | D4: =B4+C4 -> 0 | E4: =D4 -> 0
A5: 01:00:00 | B5: ='зима 2013'!J6+'зима 2013'!M6 -> 1640 | C5: ='зима 2013'!D6+'зима 2013'!G6 -> 1020 | D5: =B5+C5 -> 2660 | E5: =D5 -> 2660
A6: 02:00:00 | B6: ='зима 2013'!J7+'зима 2013'!M7 -> 1320 | C6: ='зима 2013'!D7+'зима 2013'!G7 -> 1080 | D6: 2400 | E6: 2400
A7: 03:00:00 | B7: ='зима 2013'!J8+'зима 2013'!M8 -> 1240 | C7: ='зима 2013'!D8+'зима 2013'!G8 -> 1020 | D7: 2260 | E7: 2260
A8: 04:00:00 | B8: ='зима 2013'!J9+'зима 2013'!M9 -> 1520 | C8: ='зима 2013'!D9+'зима 2013'!G9 -> 1200 | D8: 2720 | E8: 2720
A9: 05:00:00 | B9: ='зима 2013'!J10+'зима 2013'!M10 -> 1320 | C9: ='зима 2013'!D10+'зима 2013'!G10 -> 900 | D9: 2220 | E9: 2220
A10: 06:00:00 | B10: ='зима 2013'!J11+'зима 2013'!M11 -> 1320 | C10: ='зима 2013'!D11+'зима 2013'!G11 -> 1080 | D10: 2400 | E10: 2400
A11: 07:00:00 | B11: ='зима 2013'!J12+'зима 2013'!M12 -> 1760 | C11: ='зима 2013'!D12+'зима 2013'!G12 -> 1140 | D11: 2900 | E11: 2900
A12: 08:00:00 | B12: ='зима 2013'!J13+'зима 2013'!M13 -> 2280 | C12: ='зима 2013'!D13+'зима 2013'!G13 -> 1440 | D12: 3720 | E12: 3720
A13: 09:00:00 | B13: ='зима 2013'!J14+'зима 2013'!M14 -> 2200 | C13: ='зима 2013'!D14+'зима 2013'!G14 -> 1380 | D13: 3580 | E13: 3580
A14: 10:00:00 | B14: ='зима 2013'!J15+'зима 2013'!M15 -> 2640 | C14: ='зима 2013'!D15+'зима 2013'!G15 -> 1560 | D14: 4200 | E14: 4200
A15: 11:00:00 | B15: ='зима 2013'!J16+'зима 2013'!M16 -> 2480 | C15: ='зима 2013'!D16+'зима 2013'!G16 -> 1440 | D15: 3920 | E15: 3920
A16: 12:00:00 | B16: ='зима 2013'!J17+'зима 2013'!M17 -> 3480 | C16: ='зима 2013'!D17+'зима 2013'!G17 -> 1680 | D16: 5160 | E16: 5160
A17: 13:00:00 | B17: ='зима 2013'!J18+'зима 2013'!M18 -> 1480 | C17: ='зима 2013'!D18+'зима 2013'!G18 -> 1440 | D17: 2920 | E17: 2920
A18: 14:00:00 | B18: ='зима 2013'!J19+'зима 2013'!M19 -> 2160 | C18: ='зима 2013'!D19+'зима 2013'!G19 -> 1380 | D18: 3540 | E18: 3540
A19: 15:00:00 | B19: ='зима 2013'!J20+'зима 2013'!M20 -> 2640 | C19: ='зима 2013'!D20+'зима 2013'!G20 -> 1500 | D19: 4140 | E19: 4140
A20: 16:00:00 | B20: ='зима 2013'!J21+'зима 2013'!M21 -> 2160 | C20: ='зима 2013'!D21+'зима 2013'!G21 -> 1320 | D20: 3480 | E20: 3480
A21: 17:00:00 | B21: ='зима 2013'!J22+'зима 2013'!M22 -> 2280 | C21: ='зима 2013'!D22+'зима 2013'!G22 -> 1260 | D21: 3540 | E21: 3540
A22: 18:00:00 | B22: ='зима 2013'!J23+'зима 2013'!M23 -> 3240 | C22: ='зима 2013'!D23+'зима 2013'!G23 -> 1680 | D22: 4920 | E22: 4920
A23: 19:00:00 | B23: ='зима 2013'!J24+'зима 2013'!M24 -> 3680 | C23: ='зима 2013'!D24+'зима 2013'!G24 -> 2160 | D23: 5840 | E23: 5840
A24: 20:00:00 | B24: ='зима 2013'!J25+'зима 2013'!M25 -> 2720 | C24: ='зима 2013'!D25+'зима 2013'!G25 -> 1500 | D24: 4220 | E24: 4220
A25: 21:00:00 | B25: ='зима 2013'!J26+'зима 2013'!M26 -> 3160 | C25: ='зима 2013'!D26+'зима 2013'!G26 -> 1860 | D25: 5020 | E25: 5020
A26: 22:00:00 | B26: ='зима 2013'!J27+'зима 2013'!M27 -> 2480 | C26: ='зима 2013'!D27+'зима 2013'!G27 -> 1560 | D26: 4040 | E26: 4040
A27: 23:00:00 | B27: ='зима 2013'!J28+'зима 2013'!M28 -> 2480 | C27: ='зима 2013'!D28+'зима 2013'!G28 -> 1560 | D27: 4040 | E27: 4040
A28: 1 | B28: ='зима 2013'!J29+'зима 2013'!M29 -> 3280 | C28: ='зима 2013'!D29+'зима 2013'!G29 -> 1260 | D28: 4540 | E28: 4540
A29: Итого | B29: =SUM(B4:B28) -> 54960 | C29: =SUM(C4:C28) -> 33420 | D29: =SUM(D4:D28) -> 88380 | E29: =SUM(E4:E28) -> 88380
A31: 1 группа -р.п.Кольцово
A32: 2 группа - промзона
A33: Лимитируемое потребление: не выделяется . Учет не принят
A34: КС = 19702340 + ( 2 х А лимит.расх. ) = | D34: =ROUND(19702340+2*H29,0) -> 19702340
A37: Директор МУЭП "Промтехэнерго" Н.И.Скляревский

Sheet расчет лето
A1: Расчет расхода активной электроэнергии на 19.06.2013
A2: Время | B2: Расход | C2: Расход | D2: 1 гр сумма | F2: Сумма | G2: Общая нагрузка по всем фидерам
A3: местное | B3: 1 гр. Сумма ф.924+ф.933(РП-7) | C3: Сумма фидеров 915 и 951 (РП-8) | D3: население на РП3, РП6 | E3: ф,924 +ф.933+нас.-сторонники в нас. | F3: Сторонние потребители в населении (от ф.924 и ф.933) | G3: расход ( А )
A4: 00:00:00 | B4: ='лето 2013'!E5+'лето 2013'!H5 -> 0 | C4: ='лето 2013'!K5+'лето 2013'!N5 -> 0 | G4: =B4+C4 -> 0
A5: 01:00:00 | B5: ='лето 2013'!E6+'лето 2013'!H6 -> 1760 | C5: ='лето 2013'!K6+'лето 2013'!N6 -> 840 | G5: =B5+C5 -> 2600
A6: 02:00:00 | B6: ='лето 2013'!E7+'лето 2013'!H7 -> 1440 | C6: ='лето 2013'!K7+'лето 2013'!N7 -> 960 | G6: 2400
A7: 03:00:00 | B7: ='лето 2013'!E8+'лето 2013'!H8 -> 1640 | C7: ='лето 2013'!K8+'лето 2013'!N8 -> 540 | G7: 2180
A8: 04:00:00 | B8: ='лето 2013'!E9+'лето 2013'!H9 -> 1320 | C8: ='лето 2013'!K9+'лето 2013'!N9 -> 660 | G8: 1980
A9: 05:00:00 | B9: ='лето 2013'!E10+'лето 2013'!H10 -> 1040 | C9: ='лето 2013'!K10+'лето 2013'!N10 -> 420 | G9: 1460
A10: 06:00:00 | B10: ='лето 2013'!E11+'лето 2013'!H11 -> 1360 | C10: ='лето 2013'!K11+'лето 2013'!N11 -> 660 | G10: 2020
A11: 07:00:00 | B11: ='лето 2013'!E12+'лето 2013'!H12 -> 1040 | C11: ='лето 2013'!K12+'лето 2013'!N12 -> 360 | G11: 1400
A12: 08:00:00 | B12: ='лето 2013'!E13+'лето 2013'!H13 -> 1600 | C12: ='лето 2013'!K13+'лето 2013'!N13 -> 780 | G12: 2380
A13: 09:00:00 | B13: ='лето 2013'!E14+'лето 2013'!H14 -> 2400 | C13: ='лето 2013'!K14+'лето 2013'!N14 -> 1260 | G13: 3660
A14: 10:00:00 | B14: ='лето 2013'!E15+'лето 2013'!H15 -> 2040 | C14: ='лето 2013'!K15+'лето 2013'!N15 -> 1080 | G14: 3120
A15: 11:00:00 | B15: ='лето 2013'!E16+'лето 2013'!H16 -> 2080 | C15: ='лето 2013'!K16+'лето 2013'!N16 -> 1020 | G15: 3100
A16: 12:00:00 | B16: ='лето 2013'!E17+'лето 2013'!H17 -> 2120 | C16: ='лето 2013'!K17+'лето 2013'!N17 -> 1080 | G16: 3200
A17: 13:00:00 | B17: ='лето 2013'!E18+'лето 2013'!H18 -> 1720 | C17: ='лето 2013'!K18+'лето 2013'!N18 -> 780 | G17: 2500
A18: 14:00:00 | B18: ='лето 2013'!E19+'лето 2013'!H19 -> 2120 | C18: ='лето 2013'!K19+'лето 2013'!N19 -> 1080 | G18: 3200
A19: 15:00:00 | B19: ='лето 2013'!E20+'лето 2013'!H20 -> 1920 | C19: ='лето 2013'!K20+'лето 2013'!N20 -> 900 | G19: 2820
A20: 16:00:00 | B20: ='лето 2013'!E21+'лето 2013'!H21 -> 2640 | C20: ='лето 2013'!K21+'лето 2013'!N21 -> 1200 | G20: 3840
A21: 17:00:00 | B21: ='лето 2013'!E22+'лето 2013'!H22 -> 1560 | C21: ='лето 2013'!K22+'лето 2013'!N22 -> 540 | G21: 2100
A22: 18:00:00 | B22: ='лето 2013'!E23+'лето 2013'!H23 -> 2080 | C22: ='лето 2013'!K23+'лето 2013'!N23 -> 780 | G22: 2860
A23: 19:00:00 | B23: ='лето 2013'!E24+'лето 2013'!H24 -> 2040 | C23: ='лето 2013'!K24+'лето 2013'!N24 -> 780 | G23: 2820
A24: 20:00:00 | B24: ='лето 2013'!E25+'лето 2013'!H25 -> 2600 | C24: ='лето 2013'!K25+'лето 2013'!N25 -> 1260 | G24: 3860
A25: 21:00:00 | B25: ='лето 2013'!E26+'лето 2013'!H26 -> 2360 | C25: ='лето 2013'!K26+'лето 2013'!N26 -> 780 | G25: 3140
A26: 22:00:00 | B26: ='лето 2013'!E27+'лето 2013'!H27 -> 2240 | C26: ='лето 2013'!K27+'лето 2013'!N27 -> 1080 | G26: 3320
A27: 23:00:00 | B27: ='лето 2013'!E28+'лето 2013'!H28 -> 2560 | C27: ='лето 2013'!K28+'лето 2013'!N28 -> 1140 | G27: 3700
A28: 1 | B28: ='лето 2013'!E29+'лето 2013'!H29 -> 1640 | C28: ='лето 2013'!K29+'лето 2013'!N29 -> 960 | G28: 2600
A29: Итого | B29: =SUM(B5:B28) -> 45320 | C29: =SUM(C5:C28) -> 20940 | G29: 66260
G30: =G29/24/1000 -> 2.760833333
A31: 1 группа -р.п.Кольцово
A32: 2 группа - промзона
A33: Лимитируемое потребление: не выделяется . Учет не принят
A34: КС = 19702340 + ( 2 х А лимит.расх. ) =
A37: Главный инженер МУЭП "Промтехэнерго" А.А.Попельницкий
A41: Исп.Мищерякова О.Э.
B42: тел.306-38-50

Sheet лето 2013
C1: Почасовые контрольные замеры эл.эн.( активной )19.06.2013г.
A3: Время | C3: ф.10-924 | D3: Ктр. | E3: 4000 | F3: ф.10-933 | G3: Ктр. | H3: 4000 | I3: ф.10-915 | J3: Ктр. | K3: 6000 | L3: ф.10-951 | M3: Ктр. | N3: 6000 | O3: Суммарная мощность по ф.10-915, 924, 933,951
A4: местное | C4: показания | D4: разность | E4: расход | F4: показания | G4: разность | H4: расход | I4: показания | J4: разность | K4: расход | L4: показания | M4: разность | N4: расход
A5: 00:00:00 | C5: 10496.52 | F5: 20447.94 | I5: 1740.84 | L5: 550.47 | O5: 0
A6: 01:00:00 | C6: 010496,64 | D6: =C6-C5 -> 0.12 | E6: =D6*4000 -> 480 | F6: 020448,26 | G6: =F6-F5 -> 0.32 | H6: =G6*4000 -> 1280 | I6: 1740.97 | J6: =I6-I5 -> 0.13 | K6: =J6*6000 -> 780 | L6: 00550,48 | M6: =L6-L5 -> 0.01 | N6: =M6*6000 -> 60
A7: 02:00:00 | C7: 010496,77 | D7: =C7-C6 -> 0.13 | E7: =D7*4000 -> 520 | F7: 020448,49 | G7: =F7-F6 -> 0.23 | H7: =G7*4000 -> 920 | I7: 1741.12 | J7: =I7-I6 -> 0.15 | K7: =J7*6000 -> 900 | L7: 00550,49 | M7: =L7-L6 -> 0.01 | N7: =M7*6000 -> 60 | O7: =E7+H7+K7+N7 -> 2400
A8: 03:00:00 | C8: 010496,85 | D8: =C8-C7 -> 0.08 | E8: =D8*4000 -> 320 | F8: 020448,82 | G8: =F8-F7 -> 0.33 | H8: =G8*4000 -> 1320 | I8: 1741.2 | J8: =I8-I7 -> 0.08 | K8: =J8*6000 -> 480 | L8: 00550,50 | M8: =L8-L7 -> 0.01 | N8: =M8*6000 -> 60 | O8: =E8+H8+K8+N8 -> 2180
A9: 04:00:00 | C9: 010497,01 | D9: 0.16 | E9: 640 | F9: 020448,99 | G9: 0.17 | H9: 680 | I9: 1741.3 | J9: 0.1 | K9: =J9*6000 -> 600 | L9: 00550,51 | M9: 0.01 | N9: =M9*6000 -> 60 | O9: 1980
A10: 05:00:00 | C10: 010497,01 | D10: 0 | E10: 0 | F10: 020449,25 | G10: 0.26 | H10: 1040 | I10: 1741.36 | J10: 0.06 | K10: 360 | L10: 00550,52 | M10: 0.01 | N10: 60 | O10: 1460
A11: 06:00:00 | C11: 010497,10 | D11: 0.09 | E11: 360 | F11: 020449,50 | G11: 0.25 | H11: 1000 | I11: 1741.46 | J11: 0.1 | K11: 600 | L11: 00550,53 | M11: 0.01 | N11: 60 | O11: 2020
A12: 07:00:00 | C12: 010497,18 | D12: 0.08 | E12: 320 | F12: 020449,68 | G12: 0.18 | H12: 720 | I12: 1741.52 | J12: 0.06 | K12: 360 | L12: 00550,53 | M12: 0 | N12: 0 | O12: 1400
A13: 08:00:00 | C13: 010497,29 | D13: 0.11 | E13: 440 | F13: 020449,97 | G13: 0.29 | H13: 1160 | I13: 1741.64 | J13: 0.12 | K13: 720 | L13: 00550,54 | M13: 0.01 | N13: 60 | O13: 2380
A14: 09:00:00 | C14: 010497,46 | D14: 0.17 | E14: 680 | F14: 020450,40 | G14: 0.43 | H14: 1720 | I14: 1741.83 | J14: 0.19 | K14: 1140 | L14: 00550,56 | M14: 0.02 | N14: 120 | O14: 3660
A15: 10:00:00 | C15: 010497,61 | D15: 0.15 | E15: 600 | F15: 020450,76 | G15: 0.36 | H15: 1440 | I15: 1742 | J15: 0.17 | K15: 1020 | L15: 00550,57 | M15: 0.01 | N15: 60 | O15: 3120
A16: 11:00:00 | C16: 010497,76 | D16: 0.15 | E16: 600 | F16: 020451,13 | G16: 0.37 | H16: 1480 | I16: 1742.15 | J16: 0.15 | K16: 900 | L16: 00550,59 | M16: 0.02 | N16: 120 | O16: 3100
A17: 12:00:00 | C17: 010497,92 | D17: 0.16 | E17: 640 | F17: 020451,50 | G17: 0.37 | H17: 1480 | I17: 1742.32 | J17: 0.17 | K17: 1020 | L17: 00550,60 | M17: 0.01 | N17: 60 | O17: 3200
A18: 13:00:00 | C18: 010498,05 | D18: 0.13 | E18: 520 | F18: 020451,80 | G18: 0.3 | H18: 1200 | I18: 1742.44 | J18: 0.12 | K18: 720 | L18: 00550,61 | M18: 0.01 | N18: 60 | O18: 2500
A19: 14:00:00 | C19: 010498,21 | D19: 0.16 | E19: 640 | F19: 020452,17 | G19: 0.37 | H19: 1480 | I19: 1742.6 | J19: 0.16 | K19: 960 | L19: 00550,63 | M19: 0.02 | N19: 120 | O19: 3200
A20: 15:00:00 | C20: 010498,35 | D20: 0.14 | E20: 560 | F20: 020452,51 | G20: 0.34 | H20: 1360 | I20: 1742.74 | J20: 0.14 | K20: 840 | L20: 00550,64 | M20: 0.01 | N20: 60 | O20: 2820
A21: 16:00:00 | C21: 010498,54 | D21: 0.19 | E21: 760 | F21: 020452,98 | G21: 0.47 | H21: 1880 | I21: 1742.93 | J21: 0.19 | K21: 1140 | L21: 00550,65 | M21: 0.01 | N21: 60 | O21: 3840
A22: 17:00:00 | C22: 010498,65 | D22: 0.11 | E22: 440 | F22: 020453,26 | G22: 0.28 | H22: 1120 | I22: 1743.02 | J22: 0.09 | K22: 540 | L22: 00550,65 | M22: 0 | N22: 0 | O22: 2100
A23: 18:00:00 | C23: 010498,79 | D23: 0.14 | E23: 560 | F23: 020453,64 | G23: 0.38 | H23: 1520 | I23: 1743.15 | J23: 0.13 | K23: 780 | L23: 00550,65 | M23: 0 | N23: 0 | O23: 2860
A24: 19:00:00 | C24: 010499,14 | D24: 0.35 | E24: 1400 | F24: 020453,80 | G24: 0.16 | H24: 640 | I24: 1743.27 | J24: 0.12 | K24: 720 | L24: 00550,66 | M24: 0.01 | N24: 60 | O24: 2820
A25: 20:00:00 | C25: 010499,79 | D25: 0.65 | E25: 2600 | F25: 020453,80 | G25: 0 | H25: 0 | I25: 1743.47 | J25: 0.2 | K25: 1200 | L25: 00550,67 | M25: 0.01 | N25: 60 | O25: 3860
A26: 21:00:00 | C26: 010500,38 | D26: 0.59 | E26: 2360 | F26: 020453,80 | G26: 0 | H26: 0 | I26: 1743.6 | J26: 0.13 | K26: 780 | L26: 00550,67 | M26: 0 | N26: 0 | O26: 3140
A27: 22:00:00 | C27: 010500,94 | D27: 0.56 | E27: 2240 | F27: 020453,80 | G27: 0 | H27: 0 | I27: 1743.78 | J27: 0.18 | K27: 1080 | L27: 00550,67 | M27: 0 | N27: 0 | O27: 3320
A28: 23:00:00 | C28: 010501,58 | D28: 0.64 | E28: 2560 | F28: 020453,80 | G28: 0 | H28: 0 | I28: 1743.96 | J28: 0.18 | K28: 1080 | L28: 00550,68 | M28: 0.01 | N28: 60 | O28: 3700
A29: 1 | C29: 010501,99 | D29: 0.41 | E29: 1640 | F29: 020453,80 | G29: 0 | H29: 0 | I29: 1744.12 | J29: 0.16 | K29: 960 | L29: 00550,68 | M29: 0 | N29: 0 | O29: 2600
A30: Итого | E30: =SUM(E6:E29) -> 21880 | H30: =SUM(H6:H29) -> 23440 | K30: =SUM(K6:K29) -> 19680 | N30: =SUM(N6:N29) -> 1260 | O30: 66260
A31: Средняя мощность по фидерам в кВт | O31: =O30/24/1000 -> 2.760833333
Q64: ,,,,,,,,,,,,,,,,,,,,,,,,,,,,,,,,,,,,,,,,,,,,,,,,,,,,,,,,,,,,,,,,,,,,,,,,,,,,,,,,,,,,,,,,,,,,,,,,,,,,,,,,,,,,,,,

Sheet зима 2013
A1: Почасовые контрольные замеры эл.эн.( активной )18.12.2013г.
A3: Время | B3: Ф-10-915 | C3: Ктр. | D3: 6000 | E3: Ф-10-951 | F3: Ктр. | G3: 6000 | H3: Ф-10-924 | I3: Ктр. | J3: 4000 | K3: Ф-10-933 | L3: Ктр. | M3: 12000 | N3: Общая нагрузка по всем фидерам
A4: местное | B4: показание | C4: разность | D4: расход | E4: показание | F4: разность | G4: расход | H4: показание | I4: разность | J4: расход | K4: показание | L4: разность | M4: расход
A5: 00:00:00 | B5: 002323,45 | D5: =+G5 -> 0 | E5: 000707,01 | G5: =F5*'зима 2013'!G11 -> 0 | H5: 011355,61 | J5: =I5*4000 -> 0 | K5: 020905,38 | M5: =L5*4000 -> 0 | N5: =M5+J5+G5+D5 -> 0
A6: 01:00:00 | B6: 002323,60 | C6: =B6-B5 -> 0.15 | D6: =C6*6000 -> 900 | E6: 000707,03 | F6: =E6-E5 -> 0.02 | G6: =F6*6000 -> 120 | H6: 011355,78 | I6: =H6-H5 -> 0.17 | J6: =I6*4000 -> 680 | K6: 020905,46 | L6: =K6-K5 -> 0.08 | M6: =L6*12000 -> 960 | N6: =M6+J6+G6+D6 -> 2660
A7: 02:00:00 | B7: 002323,75 | C7: =B7-B6 -> 0.15 | D7: =C7*6000 -> 900 | E7: 000707,06 | F7: =E7-E6 -> 0.03 | G7: =F7*6000 -> 180 | H7: 011355,93 | I7: =H7-H6 -> 0.15 | J7: =I7*4000 -> 600 | K7: 020905,52 | L7: =K7-K6 -> 0.06 | M7: =L7*12000 -> 720 | N7: 2400
A8: 03:00:00 | B8: 002323,88 | C8: 0.13 | D8: 780 | E8: 000707,10 | F8: 0.04 | G8: 240 | H8: 011356,06 | I8: 0.13 | J8: 520 | K8: 020905,58 | L8: 0.06 | M8: 720 | N8: 2260
A9: 04:00:00 | B9: 002324,05 | C9: 0.17 | D9: 1020 | E9: 000707,13 | F9: 0.03 | G9: 180 | H9: 011356,23 | I9: 0.17 | J9: 680 | K9: 020905,65 | L9: 0.07 | M9: 840 | N9: 2720
A10: 05:00:00 | B10: 002324,17 | C10: 0.12 | D10: 720 | E10: 000707,16 | F10: 0.03 | G10: 180 | H10: 011356,38 | I10: 0.15 | J10: 600 | K10: 020905,71 | L10: 0.06 | M10: 720 | N10: 2220
A11: 06:00:00 | B11: 002324,32 | C11: 0.15 | D11: 900 | E11: 000707,19 | F11: 0.03 | G11: 180 | H11: 011356,53 | I11: 0.15 | J11: 600 | K11: 020905,77 | L11: 0.06 | M11: 720 | N11: 2400
A12: 07:00:00 | B12: 002324,48 | C12: 0.16 | D12: 960 | E12: 000707,22 | F12: 0.03 | G12: 180 | H12: 011356,73 | I12: 0.2 | J12: 800 | K12: 020905,85 | L12: 0.08 | M12: 960 | N12: 2900
A13: 08:00:00 | B13: 002324,69 | C13: 0.21 | D13: 1260 | E13: 000707,25 | F13: 0.03 | G13: 180 | H13: 011357,00 | I13: 0.27 | J13: 1080 | K13: 020905,95 | L13: 0.1 | M13: 1200 | N13: 3720
A14: 09:00:00 | B14: 002324,88 | C14: 0.19 | D14: 1140 | E14: 000707,29 | F14: 0.04 | G14: 240 | H14: 011357,25 | I14: 0.25 | J14: 1000 | K14: 020906,05 | L14: 0.1 | M14: 1200 | N14: 3580
A15: 10:00:00 | B15: 002325,11 | C15: 0.23 | D15: 1380 | E15: 000707,32 | F15: 0.03 | G15: 180 | H15: 011357,55 | I15: 0.3 | J15: 1200 | K15: 020906,17 | L15: 0.12 | M15: 1440 | N15: 4200
A16: 11:00:00 | B16: 002325,33 | C16: 0.22 | D16: 1320 | E16: 000707,34 | F16: 0.02 | G16: 120 | H16: 011357,84 | I16: 0.29 | J16: 1160 | K16: 020906,28 | L16: 0.11 | M16: 1320 | N16: 3920
A17: 12:00:00 | B17: 002325,56 | C17: 0.23 | D17: 1380 | E17: 000707,39 | F17: 0.05 | G17: 300 | H17: 011358,14 | I17: 0.3 | J17: 1200 | K17: 020906,47 | L17: 0.19 | M17: 2280 | N17: 5160
A18: 13:00:00 | B18: 002325,76 | C18: 0.2 | D18: 1200 | E18: 000707,43 | F18: 0.04 | G18: 240 | H18: 011358,42 | I18: =H18-H17 -> 0.28 | J18: 1120 | K18: 020906,50 | L18: 0.03 | M18: 360 | N18: 2920
A19: 14:00:00 | B19: 002325,94 | C19: 0.18 | D19: 1080 | E19: 000707,48 | F19: 0.05 | G19: 300 | H19: 011358,66 | I19: 0.24 | J19: 960 | K19: 020906,60 | L19: 0.1 | M19: 1200 | N19: 3540
A20: 15:00:00 | B20: 002326,16 | C20: 0.22 | D20: 1320 | E20: 000707,51 | F20: 0.03 | G20: 180 | H20: 011358,96 | I20: 0.3 | J20: 1200 | K20: 020906,72 | L20: 0.12 | M20: 1440 | N20: 4140
A21: 16:00:00 | B21: 002326,35 | C21: 0.19 | D21: 1140 | E21: 000707,54 | F21: 0.03 | G21: 180 | H21: 011359,20 | I21: 0.24 | J21: 960 | K21: 020906,82 | L21: 0.1 | M21: 1200 | N21: 3480
A22: 17:00:00 | B22: 002326,53 | C22: 0.18 | D22: 1080 | E22: 000707,57 | F22: 0.03 | G22: 180 | H22: 011359,47 | I22: 0.27 | J22: 1080 | K22: 020906,92 | L22: 0.1 | M22: 1200 | N22: 3540
A23: 18:00:00 | B23: 002326,78 | C23: 0.25 | D23: 1500 | E23: 000707,60 | F23: 0.03 | G23: 180 | H23: 011359,86 | I23: 0.39 | J23: 1560 | K23: 020907,06 | L23: 0.14 | M23: 1680 | N23: 4920
A24: 19:00:00 | B24: 002327,09 | C24: 0.31 | D24: 1860 | E24: 000707,65 | F24: 0.05 | G24: 300 | H24: 011360,30 | I24: 0.44 | J24: 1760 | K24: 020907,22 | L24: 0.16 | M24: 1920 | N24: 5840
A25: 20:00:00 | B25: 002327,31 | C25: 0.22 | D25: 1320 | E25: 000707,68 | F25: 0.03 | G25: 180 | H25: 011360,62 | I25: 0.32 | J25: 1280 | K25: 020907,34 | L25: 0.12 | M25: 1440 | N25: 4220
A26: 21:00:00 | B26: 002327,59 | C26: 0.28 | D26: 1680 | E26: 000707,71 | F26: 0.03 | G26: 180 | H26: 011360,99 | I26: 0.37 | J26: 1480 | K26: 020907,48 | L26: 0.14 | M26: 1680 | N26: 5020
A27: 22:00:00 | B27: 002327,82 | C27: 0.23 | D27: 1380 | E27: 000707,74 | F27: 0.03 | G27: 180 | H27: 011361,28 | I27: 0.29 | J27: 1160 | K27: 020907,59 | L27: 0.11 | M27: 1320 | N27: 4040
A28: 23:00:00 | B28: 002328,06 | C28: 0.24 | D28: 1440 | E28: 000707,76 | F28: 0.02 | G28: 120 | H28: 011361,57 | I28: 0.29 | J28: 1160 | K28: 020907,70 | L28: 0.11 | M28: 1320 | N28: 4040
A29: 1 | B29: 002328,26 | C29: 0.2 | D29: 1200 | E29: 000707,77 | F29: 0.01 | G29: 60 | H29: 011361,80 | I29: =H29-H27 -> 0.52 | J29: 2080 | K29: 020907,80 | L29: 0.1 | M29: 1200 | N29: 4540
D30: =SUM(D5:D29) -> 28860 | G30: =SUM(G5:G29) -> 4560 | J30: =SUM(J5:J29) -> 25920 | M30: =SUM(M5:M29) -> 29040 | N30: =SUM(N5:N29) -> 88380
A31: зимняя средняя мощность по фидерам в кВт | N31: =N30/24/1000 -> 3.6825
A32: летняя средняя мощность | N32: 2.760833333
A33: Средняя мощность за 2013г. | N33: =(N31+N32)/2 -> 3.221666667

Sheet расчет зима
A1: Расчет расхода активной электроэнергии на 18.12.2013
A2: Время | B2: Расход | C2: Расход | D2: 1 гр сумма | F2: Сумма | G2: Общая нагрузка по всем фидерам
A3: местное | B3: 1 гр. Сумма ф.924+ф.933(РП-7) | C3: Сумма фидеров 915 и 951 (РП-8) | D3: население на РП3, РП6 | E3: ф,924 +ф.933+нас.-сторонники в нас. | F3: Сторонние потребители в населении (от ф.924 и ф.933) | G3: расход ( А )
A4: 00:00:00 | B4: ='зима 2013'!J5+'зима 2013'!M5 -> 0 | C4: ='зима 2013'!D5+'зима 2013'!G5 -> 0 | G4: =B4+C4 -> 0
A5: 01:00:00 | B5: ='зима 2013'!J6+'зима 2013'!M6 -> 1640 | C5: ='зима 2013'!D6+'зима 2013'!G6 -> 1020 | G5: =B5+C5 -> 2660
A6: 02:00:00 | B6: ='зима 2013'!J7+'зима 2013'!M7 -> 1320 | C6: ='зима 2013'!D7+'зима 2013'!G7 -> 1080 | G6: 2400
A7: 03:00:00 | B7: ='зима 2013'!J8+'зима 2013'!M8 -> 1240 | C7: ='зима 2013'!D8+'зима 2013'!G8 -> 1020 | G7: 2260
A8: 04:00:00 | B8: ='зима 2013'!J9+'зима 2013'!M9 -> 1520 | C8: ='зима 2013'!D9+'зима 2013'!G9 -> 1200 | G8: 2720
A9: 05:00:00 | B9: ='зима 2013'!J10+'зима 2013'!M10 -> 1320 | C9: ='зима 2013'!D10+'зима 2013'!G10 -> 900 | G9: 2220
A10: 06:00:00 | B10: ='зима 2013'!J11+'зима 2013'!M11 -> 1320 | C10: ='зима 2013'!D11+'зима 2013'!G11 -> 1080 | G10: 2400
A11: 07:00:00 | B11: ='зима 2013'!J12+'зима 2013'!M12 -> 1760 | C11: ='зима 2013'!D12+'зима 2013'!G12 -> 1140 | G11: 2900
A12: 08:00:00 | B12: ='зима 2013'!J13+'зима 2013'!M13 -> 2280 | C12: ='зима 2013'!D13+'зима 2013'!G13 -> 1440 | G12: 3720
A13: 09:00:00 | B13: ='зима 2013'!J14+'зима 2013'!M14 -> 2200 | C13: ='зима 2013'!D14+'зима 2013'!G14 -> 1380 | G13: 3580
A14: 10:00:00 | B14: ='зима 2013'!J15+'зима 2013'!M15 -> 2640 | C14: ='зима 2013'!D15+'зима 2013'!G15 -> 1560 | G14: 4200
A15: 11:00:00 | B15: ='зима 2013'!J16+'зима 2013'!M16 -> 2480 | C15: ='зима 2013'!D16+'зима 2013'!G16 -> 1440 | G15: 3920
A16: 12:00:00 | B16: ='зима 2013'!J17+'зима 2013'!M17 -> 3480 | C16: ='зима 2013'!D17+'зима 2013'!G17 -> 1680 | G16: 5160
A17: 13:00:00 | B17: ='зима 2013'!J18+'зима 2013'!M18 -> 1480 | C17: ='зима 2013'!D18+'зима 2013'!G18 -> 1440 | G17: 2920
A18: 14:00:00 | B18: ='зима 2013'!J19+'зима 2013'!M19 -> 2160 | C18: ='зима 2013'!D19+'зима 2013'!G19 -> 1380 | G18: 3540
A19: 15:00:00 | B19: ='зима 2013'!J20+'зима 2013'!M20 -> 2640 | C19: ='зима 2013'!D20+'зима 2013'!G20 -> 1500 | G19: 4140
A20: 16:00:00 | B20: ='зима 2013'!J21+'зима 2013'!M21 -> 2160 | C20: ='зима 2013'!D21+'зима 2013'!G21 -> 1320 | G20: 3480
A21: 17:00:00 | B21: ='зима 2013'!J22+'зима 2013'!M22 -> 2280 | C21: ='зима 2013'!D22+'зима 2013'!G22 -> 1260 | G21: 3540
A22: 18:00:00 | B22: ='зима 2013'!J23+'зима 2013'!M23 -> 3240 | C22: ='зима 2013'!D23+'зима 2013'!G23 -> 1680 | G22: 4920
A23: 19:00:00 | B23: ='зима 2013'!J24+'зима 2013'!M24 -> 3680 | C23: ='зима 2013'!D24+'зима 2013'!G24 -> 2160 | G23: 5840
A24: 20:00:00 | B24: ='зима 2013'!J25+'зима 2013'!M25 -> 2720 | C24: ='зима 2013'!D25+'зима 2013'!G25 -> 1500 | G24: 4220
A25: 21:00:00 | B25: ='зима 2013'!J26+'зима 2013'!M26 -> 3160 | C25: ='зима 2013'!D26+'зима 2013'!G26 -> 1860 | G25: 5020
A26: 22:00:00 | B26: ='зима 2013'!J27+'зима 2013'!M27 -> 2480 | C26: ='зима 2013'!D27+'зима 2013'!G27 -> 1560 | G26: 4040
A27: 23:00:00 | B27: ='зима 2013'!J28+'зима 2013'!M28 -> 2480 | C27: ='зима 2013'!D28+'зима 2013'!G28 -> 1560 | G27: 4040
A28: 1 | B28: ='зима 2013'!J29+'зима 2013'!M29 -> 3280 | C28: ='зима 2013'!D29+'зима 2013'!G29 -> 1260 | G28: 4540
A29: Итого | B29: =SUM(B5:B28) -> 54960 | C29: =SUM(C5:C28) -> 33420 | G29: 88380
A30: Мощность | G30: =G29/24/1000 -> 3.6825
A31: 1 группа -р.п.Кольцово
A32: 2 группа - промзона
A33: Лимитируемое потребление: не выделяется . Учет не принят
A34: КС = 19702340 + ( 2 х А лимит.расх. ) =
A37: Главный инженер МУЭП "Промтехэнерго" А.А.Попельницкий
A41: Исп.Мищерякова О.Э.
A42: тел.306-38-50

Sheet Лист1
A1: Почасовые контрольные замеры эл.эн.( активной )18.12.2013г.
A3: Время | B3: Ф-10-915 | C3: Ктр. | D3: 6000 | E3: Ф-10-951 | F3: Ктр. | G3: 6000 | H3: Ф-10-924 | I3: Ктр. | J3: 4000 | K3: Ф-10-933 | L3: Ктр. | M3: 12000 | N3: Общая нагрузка по всем фидерам
A4: местное | B4: показание | C4: разность | D4: расход | E4: показание | F4: разность | G4: расход | H4: показание | I4: разность | J4: расход | K4: показание | L4: разность | M4: расход
A5: 00:00:00 | B5: 2323,45 | D5: =C5*'зима 2013'!D11 -> 0 | E5: 000707,01 | G5: =F5*'зима 2013'!G11 -> 0 | H5: 011355,61 | J5: =I5*4000 -> 0 | K5: 020905,38 | M5: =L5*4000 -> 0 | N5: =M5+J5+G5+D5 -> 0
A6: 01:00:00 | B6: 2323,6198 | C6: =B6-B5 -> 0.1698 | D6: =C6*6000 -> 1018.8 | E6: 000707,0404 | F6: =E6-E5 -> 0.0304 | G6: =F6*6000 -> 182.4 | H6: 011355,7914 | I6: =H6-H5 -> 0.1814 | J6: =I6*4000 -> 725.6 | K6: 020905,4572 | L6: =K6-K5 -> 0.0772 | M6: =L6*12000 -> 926.4 | N6: =M6+J6+G6+D6 -> 2853.2
A7: 02:00:00 | B7: 2323,7682 | C7: =B7-B6 -> 0.1484 | D7: =C7*6000 -> 890.4 | E7: 000707,0706 | F7: =E7-E6 -> 0.0302 | G7: =F7*6000 -> 181.2 | H7: 011355,9418 | I7: =H7-H6 -> 0.1504 | J7: =I7*4000 -> 601.6 | K7: 020905,5226 | L7: =K7-K6 -> 0.0654 | M7: =L7*12000 -> 784.8 | N7: 2458
A8: 03:00:00 | B8: 2323,9066 | C8: 0.1384 | D8: 830.4 | E8: 000707,101 | F8: 0.0304 | G8: 182.4 | H8: 011356,0798 | I8: 0.138 | J8: 552 | K8: 020905,583 | L8: 0.0604 | M8: 724.8 | N8: 2289.6
A9: 04:00:00 | B9: 2324,04 | C9: 0.1334 | D9: 800.4 | E9: 000707,1314 | F9: 0.0304 | G9: 182.4 | H9: 011356,2138 | I9: 0.134 | J9: 536 | K9: 020905,6418 | L9: 0.0588 | M9: 705.6 | N9: 2224.4
A10: 05:00:00 | B10: 2324,1738 | C10: 0.1338 | D10: 802.8 | E10: 000707,1614 | F10: 0.03 | G10: 180 | H10: 011356,3498 | I10: 0.136 | J10: 544 | K10: 020905,7002 | L10: 0.0584 | M10: 700.8 | N10: 2227.6
A11: 06:00:00 | B11: 2324,3086 | C11: 0.1348 | D11: 808.8 | E11: 000707,1912 | F11: 0.0298 | G11: 178.8 | H11: 011356,5048 | I11: 0.155 | J11: 620 | K11: 020905,7606 | L11: 0.0604 | M11: 724.8 | N11: 2332.4
A12: 07:00:00 | B12: 2324,4596 | C12: 0.151 | D12: 906 | E12: 000707,2218 | F12: 0.0306 | G12: 183.6 | H12: 011356,7034 | I12: 0.1986 | J12: 794.4 | K12: 020905,836 | L12: 0.0754 | M12: 904.8 | N12: 2788.8
A13: 08:00:00 | B13: 2324,6514 | C13: 0.1918 | D13: 1150.8 | E13: 000707,2528 | F13: 0.031 | G13: 186 | H13: 011356,9648 | I13: =H13-H12 -> 0.2614 | J13: 1045.6 | K13: 020905,9342 | L13: 0.0982 | M13: 1178.4 | N13: 3560.8
A14: 09:00:00 | B14: 2324,8582 | C14: 0.2068 | D14: 1240.8 | E14: 000707,289 | F14: 0.0362 | G14: 217.2 | H14: 011357,236 | I14: 0.2712 | J14: 1084.8 | K14: 020906,0416 | L14: 0.1074 | M14: 1288.8 | N14: 3831.6
A15: 10:00:00 | B15: 2325,076 | C15: 0.2178 | D15: 1306.8 | E15: 000707,3218 | F15: 0.0328 | G15: 196.8 | H15: 011357,5272 | I15: 0.2912 | J15: 1164.8 | K15: 020906,1514 | L15: 0.1098 | M15: 1317.6 | N15: 3986
A16: 11:00:00 | B16: 2325,3 | C16: 0.224 | D16: 1344 | E16: 000707,3474 | F16: 0.0256 | G16: 153.6 | H16: 011357,8198 | I16: 0.2926 | J16: 1170.4 | K16: 020906,2628 | L16: 0.1114 | M16: 1336.8 | N16: 4004.8
A17: 12:00:00 | B17: 2325,515 | C17: 0.215 | D17: 1290 | E17: 000707,3786 | F17: 0.0312 | G17: 187.2 | H17: 011358,1034 | I17: 0.2836 | J17: 1134.4 | K17: 020906,3742 | L17: 0.1114 | M17: 1336.8 | N17: 3948.4
A18: 13:00:00 | B18: 2325,7188 | C18: 0.2038 | D18: 1222.8 | E18: 000707,426 | F18: 0.0474 | G18: 284.4 | H18: 011358,3848 | I18: 0.2814 | J18: 1125.6 | K18: 020906,4818 | L18: 0.1076 | M18: 1291.2 | N18: 3924
A19: 14:00:00 | B19: 2325,9196 | C19: 0.2008 | D19: 1204.8 | E19: 000707,4838 | F19: 0.0578 | G19: 346.8 | H19: 011358,654 | I19: 0.2692 | J19: 1076.8 | K19: 020906,5872 | L19: 0.1054 | M19: 1264.8 | N19: 3893.2
A20: 15:00:00 | B20: 2326,1152 | C20: 0.1956 | D20: 1173.6 | E20: 000707,5112 | F20: 0.0274 | G20: 164.4 | H20: 011358,9102 | I20: 0.2562 | J20: 1024.8 | K20: 020906,692 | L20: 0.1048 | M20: 1257.6 | N20: 3620.4
A21: 16:00:00 | B21: 2326,3142 | C21: 0.199 | D21: 1194 | E21: 000707,5432 | F21: 0.032 | G21: 192 | H21: 011359,1674 | I21: 0.2572 | J21: 1028.8 | K21: 020906,801 | L21: 0.109 | M21: 1308 | N21: 3722.8
A22: 17:00:00 | B22: 2326,5176 | C22: 0.2034 | D22: 1220.4 | E22: 000707,5708 | F22: 0.0276 | G22: 165.6 | H22: 011359,465 | I22: 0.2976 | J22: 1190.4 | K22: 020906,916 | L22: 0.115 | M22: 1380 | N22: 3956.4
A23: 18:00:00 | B23: 2326,7426 | C23: 0.225 | D23: 1350 | E23: 000707,5982 | F23: 0.0274 | G23: 164.4 | H23: 011359,8202 | I23: 0.3552 | J23: 1420.8 | K23: 020907,04 | L23: 0.124 | M23: 1488 | N23: 4423.2
A24: 19:00:00 | B24: 2326,997 | C24: 0.2544 | D24: 1526.4 | E24: 000707,6274 | F24: 0.0292 | G24: 175.2 | H24: 011360,2024 | I24: 0.3822 | J24: 1528.8 | K24: 020907,1744 | L24: 0.1344 | M24: 1612.8 | N24: 4843.2
A25: 20:00:00 | B25: 2327,264 | C25: 0.267 | D25: 1602 | E25: 000707,6516 | F25: 0.0242 | G25: 145.2 | H25: 011360,5726 | I25: 0.3702 | J25: 1480.8 | K25: 020907,3138 | L25: 0.1394 | M25: 1672.8 | N25: 4900.8
A26: 21:00:00 | B26: 2327,5308 | C26: 0.2668 | D26: 1600.8 | E26: 000707,6824 | F26: 0.0308 | G26: 184.8 | H26: 011360,9346 | I26: 0.362 | J26: 1448 | K26: 020907,45 | L26: 0.1362 | M26: 1634.4 | N26: 4868
A27: 22:00:00 | B27: 2327,7934 | C27: 0.2626 | D27: 1575.6 | E27: 000707,7114 | F27: 0.029 | G27: 174 | H27: 011361,2704 | I27: 0.3358 | J27: 1343.2 | K27: 020907,5784 | L27: 0.1284 | M27: 1540.8 | N27: 4633.6
A28: 23:00:00 | B28: 2328,0292 | C28: 0.2358 | D28: 1414.8 | E28: 000707,739 | F28: 0.0276 | G28: 165.6 | H28: 011361,5542 | I28: 0.2838 | J28: 1135.2 | K28: 020907,6906 | L28: 0.1122 | M28: 1346.4 | N28: 4062
A29: 1 | B29: 2328,2318 | C29: 0.2026 | D29: 1215.6 | E29: 000707,7664 | F29: 0.0274 | G29: 164.4 | H29: 011361,7796 | I29: =H29-H28 -> 0.2254 | J29: 901.6 | K29: 020907,7814 | L29: 0.0908 | M29: 1089.6 | N29: 3371.2
D30: =SUM(D5:D29) -> 28690.8 | G30: =SUM(G5:G29) -> 4538.4 | J30: =SUM(J5:J29) -> 24678.4 | M30: =SUM(M5:M29) -> 28816.8 | N30: =SUM(N5:N29) -> 86724.4
A31: зимняя средняя мощность по фидерам в кВт | N31: =N30/24/1000 -> 3.613516667
A32: летняя средняя мощность | N32: 2.761
A33: Средняя мощность за 2013г. | N33: =(N31+N32)/2 -> 3.187258333
